fUST/lending_fUST_20260422
["ID","MTS","AMOUNT","RATE_DAILY","PERIOD"]
[420984502,1776851439109,-500.0,0.00015799,2]
[420984503,1776851439118,-204.0,0.00015842,2]
[420984504,1776851439127,-176.87715,0.00016179,2]
[420984505,1776851439136,-656.7,0.00016438,2]
[420984506,1776851439146,-656.7,0.00016744,2]
[420984507,1776851439155,-656.7,0.00017049,2]
[420984508,1776851439165,-656.7,0.00017355,2]
[420984509,1776851439174,-450.97,0.0001759,2]
[420984510,1776851439183,-184.0,0.0001759,2]
[420984511,1776851439192,-441.0,0.0001759,2]
[420984512,1776851439201,-656.7,0.0001766,2]
[420984513,1776851439210,-150.0,0.00017808,2]
[420984514,1776851439219,-231.0,0.00017842,2]
[420984515,1776851439228,-656.7,0.00017966,2]
[420984516,1776851439238,-10000.0,0.00018247,2]
[420984517,1776851439247,-656.7,0.00018271,2]
[420984518,1776851439256,-151.0,0.00018428,2]
[420984519,1776851439265,-151.0,0.00018432,2]
[420984520,1776851439274,-656.7,0.00018577,2]
[420984521,1776851439283,-453.20307884,0.00018726,2]
[420984522,1776851439292,-656.7,0.00018882,2]
[420984523,1776851439301,-67915.27904742,0.000189,2]
[420984524,1776851439310,-500.0,0.0001893,2]
[420984525,1776851439320,-500.0,0.0001893,2]
[420984526,1776851439329,-470.38887552,0.0001893,2]
[420984527,1776851439338,-500.0,0.0001893,2]
[420984528,1776851439347,-3763.7845339,0.00018931,2]
[420984529,1776851439356,-10000.0,0.00019,14]
[420984530,1776851439365,-182.45159922,0.00019016,2]
[420984531,1776851439374,-500.0,0.00019018,2]
[420984532,1776851439383,-150.0,0.00019178,2]
[420984533,1776851439394,-656.7,0.00019188,5]
[420984534,1776851439403,-1190.0,0.0001921,2]
[420984535,1776851439412,-151.0,0.00019249,2]
[420984536,1776851439421,-197.7189515,0.00019249,2]
[420984537,1776851439430,-197.4702448,0.00019255,2]
[420984538,1776851439439,-535.50299976,0.000193,2]
[420984539,1776851439448,-1271.33414092,0.000193,2]
[420984540,1776851439457,-1190.0,0.00019484,2]
[420984542,1776851439467,-656.7,0.00019493,5]
[420984544,1776851439476,-9511.90147596,0.000195,7]
[420984545,1776851439485,-200.0,0.000195,7]
[420984546,1776851439495,-1327.01,0.0001957,2]
[420984547,1776851439504,-160.0,0.00019592,3]
[420984548,1776851439513,-304.7355908,0.00019592,5]
[420984549,1776851439523,-141655.8479351,0.00019699,2]
[420984550,1776851439535,-49916.95986984,0.00019699,2]
[420984750,1776851445562,3130.24,0.00024,120]
[420984754,1776851446038,-3614.78353102,0.00019699,2]
[420984755,1776851446144,-4925.21162246,0.00019699,2]
[420984765,1776851773147,400.11,0.00024658,120]
[420984774,1776852024765,1000.0,0.00024658,120]
[420984776,1776852030442,274.83148238,0.00024657,120]
[420984778,1776852064978,-4724.91751094,7.6e-05,2]
[420984788,1776852281780,200.06787502,0.00024657,120]
[420984790,1776852289839,200.06309272,0.00024657,120]
[420984791,1776852297865,200.0,0.00024657,120]
[420984793,1776852305430,200.0,0.00024657,120]
[420984799,1776852345963,165.6927865,3.648e-05,2]
[420984809,1776852515164,311.65843349,6e-05,10]
[420984837,1776852632015,-500.0,7.154e-05,2]
[420984838,1776852632026,-559.62709693,7.154e-05,2]
[420984839,1776852632038,-3940.37290307,7.154e-05,2]
[420984840,1776852632048,-401.0,7.154e-05,2]
[420984841,1776852632057,-5000.0,7.226e-05,2]
[420984842,1776852632068,-300.0,7.298e-05,2]
[420984843,1776852632077,-150.0,7.448e-05,2]
[420984844,1776852632086,-500.0,7.599e-05,2]
[420984845,1776852632095,-500.0,7.599e-05,2]
[420984846,1776852632105,-500.0,7.599e-05,2]
[420984847,1776852632115,-500.0,7.599e-05,2]
[420984848,1776852632125,-279.27221286,7.599e-05,2]
[420984849,1776852632137,-4487.49925408,7.6e-05,2]
[420984850,1776852632148,-1331.37290307,7.6e-05,2]
[420984854,1776852638468,-413.13990253,7.6e-05,2]
[420984855,1776852638630,-18060.6835027,7.6e-05,2]
[420984856,1776852638641,-3583.73877053,7.6e-05,2]
[420984857,1776852638652,-28018.37500236,7.6e-05,2]
[420984931,1776852643502,-2907.59361649,7.6e-05,2]
[420984934,1776852646364,-15109.07332034,7.6e-05,2]
[420984939,1776852646419,-50290.3796097,7.6e-05,2]
[420984941,1776852646555,-15516.00877941,7.6e-05,2]
[420984953,1776852881878,-867.5887,7.301e-05,2]
[420984961,1776853154892,1000.76,0.00024657,120]
[420984964,1776853346200,170.0,0.0002235,120]
[420984965,1776853347575,170.0,0.00023467,120]
[420984966,1776853348987,170.0,0.0002464,120]
[420984982,1776853439472,500.0,0.00024657,120]
[420984983,1776853529341,1000.0,0.00024658,120]
[420984984,1776853586809,-3244.30130815,6.874e-05,10]
[420984985,1776853586833,-5000.0,6.943e-05,10]
[420984986,1776853586857,-150.0,7.049e-05,2]
[420984987,1776853586878,-520.0,7.049e-05,2]
[420984988,1776853586901,-300.0,7.599e-05,2]
[420984989,1776853586922,-785.69869185,7.6e-05,2]
[420984990,1776853587996,-10000.0,7.6e-05,2]
[420984991,1776853589173,-10000.0,7.6e-05,2]
[420984992,1776853590045,-10000.0,7.6e-05,2]
[420984993,1776853591021,-8194.04009837,7.6e-05,2]
[420984994,1776853649417,-5000.0,8.958e-05,10]
[420984995,1776853649442,-150.0,9.003e-05,2]
[420984996,1776853649468,-152.0,9.467e-05,2]
[420985000,1776853832288,-981.30573481,0.00010157,2]
[420985001,1776853832297,-151.0,0.0001026,2]
[420985002,1776853832306,-519.33888441,0.00010958,2]
[420985003,1776853832316,-177.0,0.00011003,2]
[420985004,1776853832330,-151.0,0.00012725,2]
[420985005,1776853832344,-204.0,0.00013003,2]
[420985006,1776853832357,-1000.0,0.00013699,2]
[420985007,1776853832370,-1000.0,0.00013699,2]
[420985008,1776853832381,-231.0,0.00015003,2]
[420985009,1776853832394,-177.0,0.00015534,3]
[420985010,1776853832407,-196.663,0.00016472,2]
[420985011,1776853832420,-184.0,0.00016472,2]
[420985013,1776853832433,-264.8,0.00016744,2]
[420985016,1776853832446,-258.0,0.00017003,2]
[420985018,1776853832459,-264.8,0.00017049,2]
[420985019,1776853832472,-264.8,0.00017355,2]
[420985020,1776853832485,-264.8,0.0001766,2]
[420985021,1776853832497,-25185.14587162,0.000178,2]
[420985039,1776853838873,-6711.45283516,0.000178,2]
[420985071,1776853846567,-17590.11092146,0.000178,2]
[420985072,1776853846578,-7839.21940997,0.000178,2]
[420985112,1776855032889,-3060.11327891,9.901e-05,2]
[420985114,1776855032898,-150.0,9.989e-05,2]
[420985116,1776855032908,-832.2372296,0.00010001,2]
[420985117,1776855032917,-832.2372296,0.00011329,2]
[420985118,1776855032927,-177.0,0.00011989,2]
[420985119,1776855032936,-832.2372296,0.00012656,2]
[420985120,1776855032946,-1000.0,0.00013699,2]
[420985121,1776855032955,-832.2372296,0.00013984,2]
[420985122,1776855032963,-204.0,0.00013989,2]
[420985123,1776855032973,-158.0,0.00015589,3]
[420985124,1776855032981,-231.0,0.00015989,2]
[420985125,1776855032990,-176.5,0.00016438,2]
[420985126,1776855032999,-184.0,0.0001653,2]
[420985127,1776855033009,-176.5,0.00016744,2]
[420985128,1776855033018,-176.5,0.00017049,2]
[420985129,1776855033027,-645.75595979,0.00017084,2]
[420985130,1776855033037,-2583.02383914,0.00017084,2]
[420985131,1776855033046,-5805.99183443,0.00017084,2]
[420985132,1776855033056,-176.5,0.00017355,2]
[420985133,1776855033065,-273.72661584,0.00017543,60]
[420985134,1776855033074,-455.1347743,0.00017609,2]
[420985135,1776855033083,-176.5,0.0001766,2]
[420985136,1776855033092,-42829.48087404,0.000178,2]
[420985137,1776855033102,-922.23,0.000178,2]
[420985138,1776855033110,-176.5,0.00017966,2]
[420985139,1776855033119,-258.0,0.00017989,2]
[420985140,1776855033129,-150.0,0.00017999,2]
[420985141,1776855033138,-15522.22137568,0.00018,2]
[420985142,1776855033147,-1000.0,0.00018,2]
[420985143,1776855033156,-1000.0,0.00018,7]
[420985144,1776855033165,-176.5,0.00018271,2]
[420985145,1776855033173,-151.4003602,0.00018431,2]
[420985146,1776855033183,-151.0,0.00018436,2]
[420985147,1776855033192,-176.5,0.00018577,2]
[420985148,1776855033201,-500.0,0.00018685,2]
[420985149,1776855033210,-500.0,0.00018685,2]
[420985150,1776855033218,-500.0,0.00018685,2]
[420985151,1776855033227,-500.0,0.00018685,2]
[420985152,1776855033236,-500.0,0.00018685,2]
[420985153,1776855033245,-500.0,0.00018685,2]
[420985154,1776855033254,-500.0,0.00018685,2]
[420985155,1776855033263,-500.0,0.00018685,2]
[420985156,1776855033271,-500.0,0.00018685,2]
[420985157,1776855033281,-500.0,0.00018685,2]
[420985158,1776855033514,-176.5,0.00018882,2]
[420985159,1776855033524,-160.26033187,0.000191,7]
[420985160,1776855033534,-176.5,0.00019188,5]
[420985161,1776855033543,-160.0,0.000192,7]
[420985162,1776855033552,-500.0,0.00019204,2]
[420985163,1776855033562,-150.936,0.00019439,2]
[420985164,1776855033571,-176.5,0.00019493,5]
[420985165,1776855033580,-184.0,0.0001953,2]
[420985166,1776855033589,-1190.0,0.000197,2]
[420985167,1776855033598,-125183.02583739,0.000197,2]
[420985329,1776855041095,-152.0,0.00017804,7]
[420985331,1776855041104,-681.52679593,0.000197,2]
[420985431,1776855043663,-2278.80907994,0.000197,2]
[420985437,1776855043716,-9643.98587992,0.000197,2]
[420985513,1776855046811,-2292.0,0.000197,2]
[420985514,1776855046822,-2585.94242598,0.000197,2]
[420985527,1776855630656,938.24025955,0.00023425,120]
[420985528,1776855631930,635.91201298,0.00024596,120]
[420985530,1776855720163,-169.864,0.00013699,2]
[420985531,1776855720192,-150.0,0.00013699,2]
[420985532,1776855720221,-1000.0,0.00013699,2]
[420985533,1776855736917,-277.36145188,0.0001515,20]
[420985534,1776855736945,-158.0,0.00015616,3]
[420985535,1776855736973,-177.0,0.00015699,2]
[420985536,1776855753709,-204.0,0.00017699,2]
[420985537,1776855753739,-500.0,0.00017983,2]
[420985538,1776855753766,-500.0,0.00017983,3]
[420985539,1776855753794,-500.0,0.00017983,4]
[420985540,1776855771000,-1217.2365667,0.00018247,2]
[420985541,1776855771028,-500.0,0.00018684,5]
[420985542,1776855771056,-433.67057054,0.00018685,2]
[420985543,1776855799675,-166.66666668,0.00018585,2]
[420985544,1776855799700,-265.66963739,0.00018685,2]
[420985545,1776855799730,-710.87613954,0.00018685,2]
[420985546,1776855810864,6698.17,0.00024657,120]
[420985547,1776855828986,-1143.21244361,0.00018685,2]
[420985551,1776856133996,848.31,0.000246,120]
[420985556,1776856231774,-1000.0,0.00013699,2]
[420985557,1776856231783,-600.00000002,0.00015149,2]
[420985558,1776856231793,-150.0,0.00015249,2]
[420985559,1776856231803,-184.0,0.00016799,2]
[420985560,1776856231812,-177.0,0.00017249,2]
[420985561,1776856231821,-209.81923719,0.00018585,2]
[420985562,1776856231831,-1654.14838811,0.00018685,2]
[420985563,1776856231841,-922.23,0.00018685,2]
[420985564,1776856231850,-166.66666666,0.00018759,2]
[420985565,1776856231859,-1208.25229198,0.00018831,2]
[420985566,1776856231868,-300.0,0.00018871,2]
[420985567,1776856231878,-300.0,0.00018871,2]
[420985569,1776856231887,-300.0,0.00018871,2]
[420985571,1776856231897,-300.0,0.00018871,2]
[420985573,1776856231907,-300.0,0.00018872,2]
[420985575,1776856231915,-330.0,0.00018872,2]
[420985577,1776856231925,-450.60734482,0.00018873,2]
[420985578,1776856231934,-500.0,0.00018873,2]
[420985580,1776856231944,-497.6318751,0.00018873,2]
[420985582,1776856231953,-500.0,0.00018873,2]
[420985584,1776856231962,-502.99386195,0.00018873,2]
[420985586,1776856231972,-182.04719394,0.00018899,2]
[420985588,1776856231982,-500.0,0.00018899,2]
[420985590,1776856231991,-500.0,0.00018899,2]
[420985592,1776856232000,-500.0,0.00018899,2]
[420985594,1776856232011,-500.0,0.00018899,2]
[420985596,1776856232020,-630.81483427,0.00018899,2]
[420985598,1776856232030,-500.0,0.00018899,2]
[420985600,1776856232039,-500.0,0.00018899,2]
[420985602,1776856232048,-275.6635108,0.00018899,2]
[420985604,1776856232057,-373.91981518,0.00018899,2]
[420985606,1776856232066,-500.0,0.00018899,2]
[420985608,1776856232075,-1075.45,0.000189,2]
[420985609,1776856232085,-552.29524019,0.000189,2]
[420985610,1776856232094,-237.27190686,0.000189,2]
[420985611,1776856232109,-520.58013479,0.000189,2]
[420985621,1776856238364,-34713.90316688,0.000189,2]
[420985622,1776856238376,-9145.65016271,0.000189,2]
[420985623,1776856238418,-1134.089456,0.000189,2]
[420985635,1776856240316,-484.0,0.000189,2]
[420985642,1776856240372,-2329.96425807,0.000189,2]
[420985794,1776856246125,-565.45,0.000189,2]
[420985796,1776856246137,-443.0,0.000189,2]
[420985798,1776856246148,-2160.0,0.000189,2]
[420985802,1776856246180,-4972.768791,0.000189,2]
[420985829,1776856246395,-1431.46,0.000189,2]
[420985954,1776857160589,10000.0,0.00024658,120]
[420985956,1776857383353,10000.0,0.00024658,120]
[420985957,1776857412128,10000.0,0.00024658,120]
[420985958,1776857421240,10000.0,0.00024658,120]
[420985959,1776857428272,10000.0,0.00024658,120]
[420985965,1776857434927,10000.0,0.00024658,120]
[420985972,1776857438458,-302.86965027,0.00012142,10]
[420985973,1776857438468,-776.97232853,0.00012265,10]
[420985974,1776857438477,-150.0,0.00012704,2]
[420985975,1776857438486,-131.81704918,0.00013699,2]
[420985976,1776857438498,-868.18295082,0.00013699,2]
[420985977,1776857438507,-177.0,0.00014704,2]
[420985978,1776857438516,-111.93485701,0.00016704,2]
[420985983,1776857440623,-92.06514299,0.00016704,2]
[420985984,1776857440634,-184.0,0.0001682,2]
[420985985,1776857440645,-573.76720922,0.00017639,2]
[420985986,1776857440799,10000.0,0.00024658,120]
[420986295,1776857446962,10000.0,0.00024658,120]
[420986296,1776857447313,-150.0,0.00016762,2]
[420986297,1776857447323,-426.23279078,0.00017639,2]
[420986298,1776857447332,-1026.34148433,0.00018,2]
[420986299,1776857457918,10000.0,0.00024658,120]
[420986300,1776857465007,10000.0,0.00024658,120]
[420986301,1776857470961,10000.0,0.00024658,120]
[420986302,1776857476780,10000.0,0.00024658,120]
[420986303,1776857483594,10000.0,0.00024658,120]
[420986304,1776857557886,-184.0,0.0001668,2]
[420986305,1776857557916,-289.77545008,0.00018,2]
[420986306,1776857678663,5003.16,0.00024658,120]
[420986307,1776857695534,5003.0,0.00024658,120]
[420986308,1776857833528,151.3,0.00024658,120]
[420986377,1776858638772,-300.0,0.00012999,2]
[420986378,1776858638782,-11758.0,0.00013,2]
[420986379,1776858638828,-899.799999,0.00013,2]
[420986380,1776858638838,-1000.0,0.00013699,2]
[420986381,1776858638848,-150.0,0.00013962,2]
[420986382,1776858638858,-300.0,0.00014256,2]
[420986383,1776858638868,-359.11613401,0.00015801,2]
[420986384,1776858638878,-177.0,0.00015962,2]
[420986386,1776858638888,-6287.76780949,0.00017057,2]
[420986388,1776858638898,-2840.66105361,0.00017057,2]
[420986389,1776858638907,-204.0,0.00017962,2]
[420986390,1776858638917,-2426.9296621,0.00018121,2]
[420986391,1776858638926,-430.71055979,0.00018473,2]
[420986392,1776858638936,-500.0,0.00018499,2]
[420986393,1776858638945,-500.0,0.00018499,2]
[420986394,1776858638954,-500.0,0.00018499,2]
[420986395,1776858638963,-500.0,0.00018499,2]
[420986396,1776858638972,-273.7396233,0.00018499,2]
[420986397,1776858638981,-167847.94924592,0.000185,2]
[420986398,1776858638993,-80051.71839529,0.000185,2]
[420986399,1776858639004,-3631.73160119,0.000185,2]
[420986422,1776858643528,-150.0,0.00017057,2]
[420986423,1776858643540,-150.936,0.00018422,2]
[420986424,1776858643551,-301.14153103,0.000185,2]
[420986425,1776858643564,-1721.72087805,0.000185,2]
[420986427,1776858646705,-4553.02931013,0.000185,2]
[420986428,1776858646865,-1023.7527171,0.000185,2]
[420986512,1776858955874,2046.65621423,0.00024658,120]
[420986516,1776859319718,-1256.78638887,0.0001251,10]
[420986517,1776859319745,-1150.42333581,0.00012636,10]
[420986518,1776859319773,-8.810556,0.00013023,2]
[420986519,1776859319823,-456.189444,0.00013023,2]
[420986520,1776859348930,-150.0,0.00013361,2]
[420986521,1776859348957,-1000.0,0.00013699,2]
[420986522,1776859348975,-150.0,0.00014065,2]
[420986523,1776859348986,-1.0,0.00014065,2]
[420986524,1776859348996,-177.0,0.00015361,2]
[420986525,1776859378175,-300.0,0.00016728,2]
[420986526,1776859378193,-300.0,0.00016729,2]
[420986527,1776859378211,-338.02028068,0.00016729,2]
[420986550,1776859832515,-3638.23000536,0.00013426,2]
[420986551,1776859832524,-150.0,0.00013631,2]
[420986552,1776859832533,-1000.0,0.00013699,2]
[420986553,1776859832543,-177.0,0.00015631,2]
[420986554,1776859832552,-184.0,0.00016526,2]
[420986555,1776859832562,-166.66666666,0.00016628,2]
[420986556,1776859832571,-1200.0,0.00016726,2]
[420986557,1776859832580,-300.0,0.00016727,2]
[420986558,1776859832589,-562.0,0.00016727,2]
[420986559,1776859832599,-300.0,0.00016727,2]
[420986560,1776859832609,-300.0,0.00016727,2]
[420986561,1776859832618,-300.0,0.00016727,2]
[420986562,1776859832627,-300.0,0.00016727,2]
[420986563,1776859832637,-3921.97660191,0.00016728,2]
[420986564,1776859832648,-970.63054912,0.00016728,2]
[420986565,1776859832658,-286.15583975,0.0001673,2]
[420986638,1776859838809,-636.07416025,0.0001673,2]
[420986639,1776859838818,-204.0,0.00017631,2]
[420986640,1776859838828,-11723.89550482,0.000178,2]
[420986641,1776859838837,-151.0,0.00017829,2]
[420986642,1776859838846,-250.32371652,0.0001792,2]
[420986643,1776859838856,-999.999999,0.00018,7]
[420986644,1776859838866,-15522.22137568,0.00018,2]
[420986645,1776859838875,-1000.0,0.00018,2]
[420986646,1776859838885,-151.0,0.0001811,2]
[420986647,1776859838895,-220.06480872,0.00018273,2]
[420986648,1776859838904,-505.02769952,0.00018273,2]
[420986649,1776859838914,-502.95452491,0.00018273,2]
[420986650,1776859838923,-276.81113179,0.00018273,2]
[420986651,1776859838932,-500.0,0.00018273,2]
[420986652,1776859838942,-500.0,0.00018273,2]
[420986653,1776859838951,-507.13510069,0.00018273,2]
[420986654,1776859838960,-500.0,0.00018273,2]
[420986655,1776859838969,-500.0,0.00018273,2]
[420986656,1776859838979,-300.0,0.00018275,2]
[420986657,1776859838987,-420.0,0.00018275,2]
[420986658,1776859838997,-407.0,0.00018275,2]
[420986659,1776859839007,-373.83,0.00018276,2]
[420986660,1776859839017,-334.94,0.00018277,2]
[420986661,1776859839027,-500.0,0.00018299,2]
[420986662,1776859839036,-500.0,0.00018299,2]
[420986663,1776859839046,-649.13620383,0.00018299,2]
[420986664,1776859839055,-308.12,0.00018299,2]
[420986665,1776859839064,-25551.51853986,0.000183,2]
[420986666,1776859839074,-58581.33725537,0.000183,2]
[420986667,1776859839090,-1056.93707012,0.000183,2]
[420986696,1776859841130,-4415.82707175,0.000183,2]
[420986736,1776859843964,-1352.99176546,0.00018117,2]
[420986769,1776859846794,-3647.00823454,0.00018117,2]
[420986770,1776859846804,-18662.32065745,0.000183,2]
[420986771,1776859846984,-288442.22596028,0.000183,2]
[420986773,1776859969502,2000.0,0.00024658,120]
[420986803,1776860241206,208.37,0.00024657,120]
[420986814,1776860388462,1844.36,0.0002465,120]
[420986825,1776860674178,500.0,0.00024657,120]
[420986827,1776860715665,160.39,0.00024633,120]
[420986915,1776861038189,-2146.0481688,0.00012142,10]
[420986916,1776861038198,-5000.0,0.00012265,10]
[420986917,1776861038207,-150.0,0.00012452,2]
[420986918,1776861038216,-592.0,0.00012452,2]
[420986919,1776861038225,-1200.0,0.0001296,2]
[420986920,1776861038235,-300.0,0.00013689,2]
[420986921,1776861038244,-300.0,0.00013689,2]
[420986922,1776861038253,-300.0,0.00013689,2]
[420986923,1776861038263,-300.0,0.00013689,2]
[420986924,1776861038272,-300.0,0.00013689,2]
[420986925,1776861038282,-1200.0,0.0001369,2]
[420986926,1776861038291,-1000.0,0.00013699,2]
[420986927,1776861038300,-177.0,0.00014452,2]
[420986928,1776861038309,-420.0,0.00015002,2]
[420986929,1776861038319,-420.0,0.00015002,2]
[420986930,1776861038328,-420.0,0.00015002,2]
[420986931,1776861038336,-420.0,0.00015002,2]
[420986932,1776861038346,-1000.0,0.00015079,2]
[420986933,1776861038355,-426.756433,0.00016332,2]
[420986934,1776861038365,-180.0,0.0001644,2]
[420986935,1776861038374,-204.0,0.00016452,2]
[420986936,1776861038384,-184.0,0.00016683,2]
[420986937,1776861038393,-426.756433,0.0001702,2]
[420986938,1776861038403,-500.0,0.00017351,2]
[420986939,1776861038412,-500.0,0.00017351,2]
[420986940,1776861038421,-500.0,0.00017351,2]
[420986941,1776861038431,-500.0,0.00017351,2]
[420986942,1776861038440,-500.0,0.00017351,2]
[420986943,1776861038450,-500.0,0.00017351,2]
[420986944,1776861038459,-500.0,0.00017351,2]
[420986945,1776861038468,-500.0,0.00017351,2]
[420986946,1776861038477,-500.0,0.00017351,2]
[420986947,1776861038487,-500.0,0.00017351,2]
[420986948,1776861038496,-500.0,0.00017351,2]
[420986949,1776861038506,-291.84526023,0.00017351,2]
[420986950,1776861038516,-500.0,0.00017351,2]
[420986951,1776861038525,-560.34375397,0.00017351,2]
[420986952,1776861038535,-200.19300432,0.000174,2]
[420986953,1776861038544,-266.24157141,0.00017524,2]
[420986954,1776861038553,-500.0,0.00017524,2]
[420986955,1776861038563,-154.39534268,0.00017524,2]
[420986956,1776861038572,-500.0,0.00017524,2]
[420986957,1776861038581,-500.0,0.00017524,2]
[420986958,1776861038590,-500.0,0.00017524,2]
[420986959,1776861038600,-500.0,0.00017524,2]
[420986960,1776861038609,-500.0,0.00017524,2]
[420986961,1776861038618,-500.0,0.00017524,2]
[420986962,1776861038627,-500.0,0.00017524,2]
[420986963,1776861038636,-500.0,0.00017524,2]
[420986964,1776861038646,-500.0,0.00017524,2]
[420986965,1776861038655,-500.0,0.00017524,2]
[420986966,1776861038664,-500.0,0.00017524,2]
[420986967,1776861038673,-500.0,0.00017524,2]
[420986968,1776861038682,-500.0,0.00017524,2]
[420986969,1776861038691,-500.0,0.00017524,2]
[420986970,1776861038700,-500.0,0.00017524,2]
[420986971,1776861038709,-500.0,0.00017524,2]
[420986972,1776861038718,-456.8977804,0.00017524,2]
[420986973,1776861038727,-1126861.27200682,0.00017525,2]
[420986974,1776861038736,-500.0,0.00017525,2]
[420986975,1776861038745,-204.67655099,0.00017525,2]
[420986976,1776861038754,-151.5,0.00017525,2]
[420986977,1776861038763,-189.64418843,0.00017525,2]
[420986978,1776861038773,-500.0,0.00017525,2]
[420986979,1776861038783,-500.0,0.00017525,2]
[420986980,1776861038791,-500.0,0.00017525,2]
[420986981,1776861038801,-500.0,0.00017525,2]
[420986982,1776861038811,-647.89399347,0.00017525,2]
[420986983,1776861038820,-500.0,0.00017525,2]
[420986984,1776861038829,-500.0,0.00017525,2]
[420986985,1776861038838,-237.85375286,0.00017525,2]
[420986986,1776861038847,-151.5,0.00017525,2]
[420986987,1776861038856,-151.0,0.00017554,2]
[420986988,1776861038865,-500.0,0.00017573,2]
[420986989,1776861038874,-500.0,0.00017573,2]
[420986990,1776861038883,-500.0,0.00017573,2]
[420986991,1776861038893,-799.0,0.00017625,2]
[420986992,1776861038903,-799.0,0.00017625,2]
[420986993,1776861038912,-799.0,0.00017625,2]
[420986994,1776861038921,-799.0,0.00017625,2]
[420986995,1776861038930,-799.0,0.00017625,2]
[420986996,1776861038939,-799.0,0.00017625,2]
[420986997,1776861038949,-799.0,0.00017625,2]
[420986998,1776861038958,-799.0,0.00017625,2]
[420986999,1776861038967,-799.0,0.00017625,2]
[420987000,1776861038977,-799.0,0.00017625,2]
[420987001,1776861038987,-799.0,0.00017625,2]
[420987002,1776861038997,-799.0,0.00017625,2]
[420987003,1776861039007,-799.0,0.00017625,2]
[420987004,1776861039016,-799.0,0.00017625,2]
[420987005,1776861039026,-799.0,0.00017625,2]
[420987006,1776861039036,-799.0,0.00017625,2]
[420987007,1776861039045,-799.0,0.00017625,2]
[420987008,1776861039055,-799.0,0.00017625,2]
[420987009,1776861039065,-799.0,0.00017625,2]
[420987010,1776861039074,-500.0,0.00017625,2]
[420987011,1776861039083,-150.0,0.00017625,2]
[420987012,1776861039092,-506.53357746,0.00017625,2]
[420987013,1776861039101,-150.0,0.00017625,2]
[420987014,1776861039110,-799.0,0.00017625,2]
[420987015,1776861039120,-150.0,0.00017625,2]
[420987016,1776861039129,-150.0,0.00017625,2]
[420987017,1776861039139,-150.0,0.00017625,2]
[420987018,1776861039148,-150.0,0.00017625,2]
[420987019,1776861039158,-150.0,0.00017625,2]
[420987020,1776861039167,-799.0,0.00017625,2]
[420987021,1776861039176,-799.0,0.00017625,2]
[420987022,1776861039186,-799.0,0.00017625,2]
[420987023,1776861039195,-812.06469156,0.00017625,2]
[420987024,1776861039205,-300.4872327,0.00017634,2]
[420987025,1776861039214,-455.5067951,0.00017634,2]
[420987026,1776861039223,-500.0,0.00017673,2]
[420987027,1776861039233,-500.0,0.00017673,2]
[420987028,1776861039242,-207960.44840571,0.00017699,2]
[420987029,1776861039258,-63368.29174873,0.00017699,2]
[420987038,1776861040282,-5142.75770885,0.00017699,2]
[420987039,1776861040293,-1549.6017491,0.00017699,2]
[420987066,1776861043106,-1743.03504496,0.00017699,2]
[420987067,1776861043163,-14693.57473562,0.00017699,2]
[420987068,1776861043176,-11668.36099734,0.00017699,2]
[420987069,1776861043185,-426.756433,0.00017707,2]
[420987070,1776861043195,-500.0,0.00017773,2]
[420987071,1776861043204,-500.0,0.00017773,2]